bitfinex/quotes_SOLUSD_20240729
["timestamp","ask_amount","ask_price","bid_price","bid_amount"]
[1722282332005,45.17,187.03,186.97,12.45]
[1722282332312,45.17,187.03,186.94,7.93525944]
[1722282332313,57.62,187.03,186.95,12.45]
[1722282332515,12.45,187.01,186.94,20.38525944]
[1722282332685,45.17,187.0,186.93,20.38525944]
[1722282332888,45.17,187.0,186.93,7.93525944]
[1722282333194,45.17,187.0,186.9,12.45]
[1722282333195,12.45,186.98,186.9,12.45]
[1722282333387,57.62,186.97,186.9,12.45]
[1722282333589,63.7074,186.97,186.9,12.45]
[1722282333791,12.45,186.96,186.85,7.95039842]
[1722282333989,0.17,186.95,186.89,12.45]
[1722282334193,12.45,186.94,186.82,7.95039842]
[1722282334396,5.3487,186.96,186.87,12.45]
[1722282334397,60.9172,186.93,186.87,12.45]
[1722282335207,60.9172,186.93,186.83,1.07013608]
[1722282335386,60.9172,186.93,186.8,26.94345569]
[1722282335587,66.2668,186.93,186.8,25.87331236]
[1722282336382,5.3498,186.92,186.8,25.87331236]
[1722282336608,45.17,186.91,186.8,1.09331236]
[1722282338107,0.17,186.91,186.81,1.07032614]
[1722282338693,45.0,186.92,186.81,21.07032614]
[1722282338888,15.7472,186.93,186.83,20.0]
[1722282339087,15.7472,186.93,186.84,1.07010968]
[1722282339700,15.7472,186.93,186.83,24.78]
[1722282340684,15.7472,186.93,186.84,1.07005656]
[1722282340987,6.0874,186.97,186.86,44.78]
[1722282341385,6.0874,186.97,186.86,45.84979373]
[1722282341792,6.0874,186.97,186.86,24.78]
[1722282342411,45.17,186.96,186.83,40.8559]
[1722282342612,45.17,186.96,186.84,20.0]
[1722282344496,45.17,186.96,186.85,1.06997306]
[1722282344920,45.17,186.96,186.85,1.06993287]
[1722282345215,45.17,186.96,186.84,21.06994816]
[1722282345418,45.17,186.96,186.84,20.0]
[1722282346900,45.17,186.96,186.84,40.0]
[1722282348321,6.0874,186.97,186.86,44.78]
[1722282348633,6.0874,186.97,186.88,20.0]
[1722282349217,6.0874,186.97,186.86,45.84978796]
[1722282349418,6.0874,186.97,186.86,25.84978796]
[1722282349810,6.0874,186.97,186.86,45.84978796]
[1722282350018,6.0874,186.97,186.86,25.84978796]
[1722282350311,6.0874,186.97,186.86,24.78]
[1722282350519,6.0874,186.97,186.86,25.8498334]
[1722282350822,6.0874,186.97,186.86,24.78]
[1722282351018,0.17,186.96,186.86,24.78]
[1722282351199,0.17,186.96,186.86,25.84990439]
[1722282351401,6.0874,186.97,186.86,25.84990439]
[1722282352111,6.0874,186.97,186.86,24.78]
[1722282353024,6.0874,186.97,186.88,20.0]
[1722282353500,6.0874,186.97,186.86,44.78]
[1722282354723,6.0874,186.97,186.86,25.84982934]
[1722282356697,6.0874,186.97,186.86,24.78]
[1722282357104,6.0874,186.97,186.86,44.78]
[1722282359222,6.0874,186.97,186.91,12.39]
[1722282359515,0.17,186.96,186.89,12.39]
[1722282360310,45.17,186.96,186.9,12.39]
[1722282361524,45.17,186.96,186.91,12.39]
[1722282361940,0.17,186.96,186.92,12.39]
[1722282362427,0.17,186.96,186.93,12.39]
[1722282362938,6.0874,186.97,186.93,12.39]
[1722282363108,6.0874,186.97,186.94,12.39]
[1722282363423,15.6403,186.98,186.95,12.39]
[1722282363631,15.6403,186.98,186.96,12.39]
[1722282363815,15.6403,186.98,186.95,12.39]
[1722282364145,15.6403,186.98,186.96,12.39]
[1722282364825,15.6403,186.98,186.97,12.39]
[1722282365306,15.6403,186.98,186.91,24.76]
[1722282365507,15.6403,186.98,186.92,1.06960131]
[1722282365708,15.6403,186.98,186.92,1.06965882]
[1722282365934,15.6403,186.98,186.91,24.76]
[1722282366429,15.6403,186.98,186.92,1.0696809]
[1722282366731,15.6403,186.98,186.91,24.76]
[1722282366946,15.6403,186.98,186.92,20.0]
[1722282367528,15.6403,186.98,186.91,24.76]
[1722282369237,15.6403,186.98,186.89,24.76]
[1722282369448,15.6403,186.98,186.9,20.0]
[1722282370936,15.6403,186.98,186.89,24.76]
[1722282371240,15.6403,186.98,186.86,44.76]
[1722282371423,0.17,186.97,186.86,44.76]
[1722282371628,0.17,186.97,186.86,24.76]
[1722282372036,0.17,186.97,186.8,9.03790747]
[1722282372037,0.17,186.97,186.83,40.8359]
[1722282372219,6.5265,186.96,186.83,24.76]
[1722282372423,45.17,186.95,186.83,24.76]
[1722282373653,15.4975,186.94,186.8,6.66706132]
[1722282373871,45.17,186.93,186.8,6.66706132]
[1722282374157,50.5197,186.93,186.8,6.66706132]
[1722282375545,45.17,186.93,186.8,6.66706132]
[1722282376629,45.17,186.93,186.81,45.8302296]
[1722282377019,45.17,186.93,186.82,1.07022974]
[1722282377219,45.17,186.93,186.81,44.76]
[1722282377421,45.17,186.93,186.82,1.07022927]
[1722282378321,45.17,186.93,186.81,24.76]
[1722282380059,50.5196,186.93,186.81,24.76]
[1722282380548,22.6251,186.92,186.8,6.66706132]
[1722282380750,45.17,186.91,186.8,1.09331236]
[1722282381315,21.8446,186.9,186.8,1.09331236]
[1722282381534,45.0,186.89,186.8,1.09331236]
[1722282381742,0.17,186.88,186.8,1.09331236]
[1722282382719,0.17,186.88,186.81,1.07043838]
[1722282382923,0.17,186.88,186.8,1.09331236]
[1722282383137,16.4941,186.9,186.8,1.09331236]
[1722282383330,0.17,186.89,186.8,1.09331236]
[1722282384832,0.17,186.89,186.8,21.09331236]
[1722282385151,16.4941,186.9,186.81,1.07025186]
[1722282385336,16.4941,186.9,186.8,1.09331236]
[1722282385533,16.4941,186.9,186.82,20.0]
[1722282385744,16.4941,186.9,186.83,1.07016605]
[1722282386046,16.4941,186.9,186.8,2.16345679]
[1722282386251,16.4941,186.9,186.8,25.85331236]
[1722282386631,16.4941,186.9,186.8,45.85331236]
[1722282386947,16.4941,186.9,186.8,46.92353689]
[1722282387124,16.4941,186.9,186.8,45.85331236]
[1722282388054,16.4941,186.9,186.8,25.85331236]
[1722282389231,16.4941,186.9,186.85,12.39]
[1722282389463,16.4941,186.9,186.86,12.39]
[1722282389959,16.4941,186.9,186.85,12.39]
[1722282390460,16.4941,186.9,186.86,12.39]
[1722282394276,16.4941,186.9,186.85,12.39]
[1722282394766,16.4941,186.9,186.84,12.39]
[1722282395763,16.4941,186.9,186.8,1.09331236]
[1722282395983,16.4941,186.9,186.85,12.39]
[1722282396350,16.4941,186.9,186.86,12.39]
[1722282397082,16.4941,186.9,186.85,12.39]
[1722282397487,16.4941,186.9,186.86,12.39]
[1722282399178,16.4941,186.9,186.85,12.39]
[1722282400472,16.4941,186.9,186.8,1.09331236]
[1722282400677,0.17,186.89,186.84,12.39]
[1722282400851,45.17,186.89,186.84,12.39]
[1722282404157,45.17,186.89,186.83,12.39]
[1722282404673,12.39,186.88,186.8,1.09331236]
[1722282404857,57.56,186.87,186.8,13.48331236]
[1722282405665,57.56,186.87,186.8,1.09331236]
[1722282407085,45.17,186.87,186.81,12.39]
[1722282407595,0.17,186.87,186.84,12.39]
[1722282407876,16.4941,186.9,186.86,12.39]
[1722282408081,16.4941,186.9,186.87,12.39]
[1722282408960,15.5792,186.96,186.89,12.39]
[1722282409160,15.5792,186.96,186.91,12.39]
[1722282409381,15.5792,186.96,186.92,12.39]
[1722282410369,15.5792,186.96,186.9,12.39]
[1722282410683,15.5792,186.96,186.89,12.39]
[1722282412462,0.17,186.95,186.89,12.39]
[1722282412873,0.17,186.95,186.9,0.3218]
[1722282413578,0.17,186.95,186.9,12.7118]
[1722282415160,0.17,186.95,186.9,0.3218]
[1722282415868,0.17,186.95,186.9,12.7118]
[1722282416073,0.17,186.95,186.9,0.3218]
[1722282416275,57.56,186.95,186.9,0.3218]
[1722282416484,12.39,186.94,186.9,0.3218]
[1722282416988,57.56,186.95,186.9,0.3218]
[1722282417162,12.39,186.94,186.9,0.3218]
[1722282417367,0.17,186.93,186.9,0.3218]
[1722282420475,0.17,186.94,186.9,13.78185255]
[1722282420676,15.5792,186.96,186.92,12.39]
[1722282420988,15.5792,186.96,186.91,12.39]
[1722282421695,15.5792,186.96,186.92,12.39]
[1722282422394,16.3909,187.0,186.92,12.39]
[1722282422706,16.3909,187.0,186.94,12.39]
[1722282422875,16.3909,187.0,186.95,12.39]
[1722282423076,16.3909,187.0,186.98,12.39]
[1722282423306,28.7809,187.05,186.98,12.39]
[1722282423777,34.1271,187.05,186.97,12.39]
[1722282424192,28.7809,187.05,186.98,12.39]
[1722282424398,45.17,187.04,186.98,12.39]
[1722282424572,45.0,187.04,186.98,12.39]
[1722282425398,16.3909,187.05,187.01,12.39]
[1722282425774,16.3909,187.05,187.0,12.39]
[1722282426274,27.5939,187.09,187.02,12.39]
[1722282428096,12.39,187.07,186.95,26.2442]
[1722282428284,0.17,187.06,187.0,12.39]
[1722282429001,0.17,187.06,186.99,12.39]
[1722282429385,12.56,187.06,186.99,12.39]
[1722282429694,12.39,187.05,186.97,12.39]
[1722282429877,0.17,187.04,186.98,12.39]
[1722282430076,12.39,187.07,186.99,12.39]
[1722282430294,0.17,187.06,186.99,12.39]
[1722282431178,12.39,187.05,186.98,12.39]
[1722282433100,0.17,187.06,186.99,12.39]
[1722282433101,0.17,187.04,186.99,12.39]
[1722282433302,0.17,187.04,186.97,12.39]
[1722282433680,0.17,187.04,186.99,12.39]
[1722282433883,0.17,187.05,186.99,12.39]
[1722282434810,0.17,187.05,186.98,12.39]
[1722282435814,0.17,187.05,186.99,12.39]
[1722282436704,0.17,187.05,186.98,12.39]
[1722282437782,12.56,187.05,186.98,12.39]
[1722282439202,12.56,187.05,186.98,12.7118]
[1722282439685,0.17,187.05,186.98,12.7118]
[1722282441193,12.56,187.05,186.98,0.3218]
[1722282441706,12.39,187.04,186.98,0.3218]
[1722282441998,0.17,187.03,186.98,0.3218]
[1722282442403,0.17,187.04,186.98,0.3218]
[1722282442905,0.17,187.04,186.98,12.7118]
[1722282446405,0.17,187.04,186.98,0.3218]
[1722282446803,12.39,187.03,186.98,0.3218]
[1722282447186,16.3829,187.02,186.98,0.3218]
[1722282447799,28.7729,187.02,186.98,0.3218]
[1722282448596,12.39,187.01,186.98,0.3218]
[1722282448789,0.17,187.0,186.98,0.3218]
[1722282449003,12.39,187.01,186.98,0.3218]
[1722282449197,0.17,187.0,186.98,0.3218]
[1722282452012,16.2129,187.02,186.98,0.3218]
[1722282452222,16.2129,187.02,186.98,12.7118]
[1722282452818,15.1016,187.07,186.99,12.39]
[1722282453018,15.1016,187.07,187.0,12.39]
[1722282453201,15.1016,187.07,187.02,12.39]
[1722282454409,15.1016,187.07,187.01,12.39]
[1722282454800,15.1016,187.07,187.0,12.39]
[1722282455513,15.1016,187.07,187.01,12.39]
[1722282456797,27.4916,187.07,186.99,12.39]
[1722282456988,0.17,187.06,186.99,12.39]
[1722282457197,0.17,187.06,187.0,13.45937672]
[1722282457493,0.17,187.06,187.01,12.39]
[1722282457701,0.17,187.06,187.0,12.39]
[1722282460595,0.17,187.06,186.93,91.272]
[1722282460798,12.56,187.06,186.99,12.39]
[1722282461193,0.17,187.06,187.01,12.39]
[1722282461627,0.17,187.06,187.0,12.39]
[1722282462192,0.17,187.06,186.94,65.0]
[1722282462410,12.39,187.05,186.98,12.39]
[1722282462604,12.56,187.04,186.97,12.39]
[1722282462803,17.7364,187.04,186.96,12.39]
[1722282463010,0.17,187.03,186.96,12.39]
[1722282463213,12.56,187.03,186.96,12.39]
[1722282463417,12.56,187.03,187.0,0.3218]
[1722282464103,0.17,187.03,187.0,0.3218]
[1722282471829,12.39,187.05,187.0,0.3218]
[1722282472029,0.17,187.04,187.0,0.3218]
[1722282472329,12.56,187.04,187.0,0.3218]
[1722282472809,0.17,187.04,187.0,0.3218]
[1722282473916,15.1016,187.07,187.0,12.7118]
[1722282474237,0.17,187.06,187.01,12.39]
[1722282475037,5.3447,187.1,187.01,12.39]
[1722282475256,12.39,187.11,187.03,12.39]
[1722282475413,0.17,187.1,187.03,12.39]
[1722282475615,5.5148,187.1,187.03,12.39]
[1722282475815,12.39,187.09,187.02,12.39]
[1722282476035,0.17,187.08,187.02,12.39]
[1722282479918,12.56,187.09,187.02,12.39]
[1722282480321,0.17,187.09,187.02,12.39]
[1722282481450,12.56,187.09,187.02,12.39]
[1722282483561,12.56,187.09,187.02,120.99]
[1722282484071,0.17,187.09,187.04,12.39]
[1722282484653,0.17,187.1,187.04,12.39]
[1722282485238,0.17,187.1,187.04,12.7118]
[1722282486265,21.7595,187.15,187.04,12.7118]
[1722282486266,5.3439,187.13,187.04,12.7118]
[1722282486435,12.56,187.12,187.05,12.39]
[1722282487779,17.9042,187.12,187.05,12.39]
[1722282488567,17.9042,187.12,187.04,12.7118]
[1722282488734,12.39,187.11,187.04,12.7118]
[1722282489064,0.17,187.1,187.04,12.7118]
[1722282489277,12.56,187.1,187.04,0.3218]
[1722282492369,12.39,187.08,187.04,0.3218]
[1722282492556,0.17,187.07,187.04,0.3218]
[1722282494840,15.9584,187.09,187.04,0.3218]
[1722282495046,5.3441,187.13,187.04,12.7118]
[1722282495344,12.56,187.12,187.04,12.7118]
[1722282497143,15.4427,187.14,187.06,12.39]
[1722282497447,15.4427,187.14,187.08,12.39]
[1722282498573,15.4427,187.14,187.07,12.39]
[1722282498760,27.8327,187.14,187.07,12.39]
[1722282498954,0.17,187.13,187.07,12.39]
[1722282501068,0.17,187.13,187.04,0.3218]
[1722282501249,0.17,187.13,187.07,12.39]
[1722282503253,0.17,187.13,187.05,12.39]
[1722282504669,12.39,187.1,187.02,120.99]
[1722282504879,0.17,187.09,187.02,120.99]
[1722282505187,0.17,187.09,187.03,13.45920244]
[1722282505358,12.56,187.1,187.03,12.39]
[1722282507386,57.39,187.09,187.02,108.6]
[1722282507561,12.39,187.07,187.02,108.6]
[1722282507758,0.17,187.06,187.02,108.6]
[1722282508285,0.17,187.06,187.03,0.3218]
[1722282508489,12.56,187.06,187.03,0.3218]
[1722282508786,0.17,187.06,187.03,0.3218]
[1722282510777,12.56,187.06,187.03,0.3218]
[1722282510976,12.56,187.06,187.03,1e-08]
[1722282510977,17.7364,187.04,187.03,1e-08]
[1722282511284,5.3467,187.03,187.02,60.33882636]
[1722282511450,62.9067,187.03,187.02,60.33882636]
[1722282512876,62.9067,187.03,187.02,55.97782636]
[1722282514283,50.5167,187.03,187.02,55.97782636]
[1722282514676,62.9067,187.03,187.02,55.97782636]
[1722282514877,50.5167,187.03,187.02,55.97782636]
[1722282515087,62.9067,187.03,187.02,55.97782636]
[1722282517879,75.2967,187.03,187.02,55.97782636]
[1722282518162,95.2967,187.03,187.02,40.97882636]
[1722282518358,95.2967,187.03,187.02,36.34782636]
[1722282518766,95.2967,187.03,187.02,25.84782636]
[1722282518978,95.2967,187.03,187.02,19.72782636]
[1722282519192,95.2967,187.03,187.02,18.12028162]
[1722282519577,95.2967,187.03,187.02,16.51273688]
[1722282519888,95.2967,187.03,187.02,14.90519214]
[1722282520207,110.902,187.03,187.02,9.10519214]
[1722282521009,110.902,187.03,187.02,5.88968342]
[1722282521302,110.902,187.03,187.02,4.28171944]
[1722282521505,110.902,187.03,187.02,2.67375546]
[1722282521694,85.952,187.03,187.02,2.67375546]
[1722282521907,78.342,187.03,187.02,2.67375546]
[1722282522100,72.9953,187.03,187.02,2.67375546]
[1722282522399,12.39,187.03,187.02,2.67375546]
[1722282523802,57.39,187.03,187.02,2.67375546]
[1722282523984,57.56,187.03,187.02,2.67375546]
[1722282524583,0.17,187.03,187.02,2.67375546]
[1722282525005,12.56,187.03,187.02,2.67375546]
[1722282525332,57.56,187.03,187.02,2.67375546]
[1722282527898,12.56,187.03,187.02,2.67375546]
[1722282528098,0.17,187.03,187.02,2.67375546]
[1722282528726,12.39,187.06,187.02,2.67375546]
[1722282528929,0.17,187.05,187.02,2.67375546]
[1722282529709,12.39,187.05,187.02,2.67375546]
[1722282531600,12.39,187.08,187.02,2.67375546]
[1722282531803,12.39,187.1,187.02,15.06375546]
[1722282532042,12.39,187.1,187.03,12.39]
[1722282532424,12.39,187.1,187.03,13.45921575]
[1722282533435,0.17,187.09,187.03,13.45921575]
[1722282533607,12.39,187.1,187.02,15.06375546]
[1722282533803,5.3441,187.12,187.03,6.4029]
[1722282534009,12.39,187.11,187.03,18.7929]
[1722282534220,12.39,187.1,187.03,6.4029]
[1722282535345,0.17,187.09,187.03,6.4029]
[1722282535545,12.39,187.08,187.03,6.4029]
[1722282535832,12.56,187.09,187.03,6.4029]
[1722282536823,12.39,187.08,187.03,6.4029]
[1722282537532,12.56,187.09,187.03,6.4029]
[1722282538840,12.39,187.08,187.03,6.4029]
[1722282539411,12.56,187.07,187.02,2.67375546]
[1722282539648,12.39,187.05,187.02,2.67375546]
[1722282539810,12.39,187.06,187.02,2.67375546]
[1722282540006,0.17,187.05,187.02,2.67375546]
[1722282540229,12.56,187.07,187.02,2.67375546]
[1722282541923,12.39,187.06,187.02,2.67375546]
[1722282542123,0.17,187.05,187.02,2.67375546]
[1722282543038,12.56,187.05,187.02,2.67375546]
[1722282543240,12.39,187.03,187.02,2.67375546]
[1722282543440,57.56,187.03,187.02,2.67375546]
[1722282544048,12.56,187.03,187.02,2.67375546]
[1722282544849,0.17,187.03,187.02,2.67375546]
[1722282545040,12.39,187.05,187.02,2.67375546]
[1722282545368,12.56,187.04,187.02,2.67375546]
[1722282545838,0.17,187.04,187.02,2.67375546]
[1722282546035,0.17,187.05,187.02,2.67375546]
[1722282546209,0.17,187.06,187.02,2.67375546]
[1722282548039,0.17,187.07,187.02,2.67375546]
[1722282548347,12.56,187.07,187.02,2.67375546]
[1722282549648,0.17,187.07,187.02,2.67375546]
[1722282549837,12.39,187.05,187.02,2.67375546]
[1722282550628,12.56,187.04,187.02,2.67375546]
[1722282550851,57.39,187.03,187.02,2.67375546]
[1722282551050,62.9067,187.03,187.02,2.67375546]
[1722282552245,95.2967,187.03,187.02,2.67375546]
[1722282552556,5.3489,186.96,186.89,0.65830124]
[1722282552752,57.56,186.95,186.89,0.65830124]
[1722282556755,45.17,186.95,186.89,0.65830124]
[1722282557070,0.17,186.95,186.9,12.39]
[1722282557245,0.17,186.96,186.91,12.39]
[1722282557447,0.17,186.97,186.91,12.39]
[1722282557867,0.17,186.98,186.91,12.39]
[1722282558369,12.56,186.98,186.91,12.39]
[1722282558856,45.0,186.97,186.89,0.65830124]
[1722282559052,0.17,186.96,186.89,13.04830124]
[1722282559268,0.17,186.96,186.89,0.65830124]
[1722282559456,0.17,186.96,186.9,12.39]
[1722282560067,0.17,186.96,186.89,13.04830124]
[1722282560263,12.56,186.96,186.89,13.04830124]
[1722282560456,12.56,186.96,186.89,0.65830124]
[1722282560766,12.39,186.95,186.89,0.65830124]
[1722282560967,12.56,186.94,186.89,0.65830124]
[1722282561645,12.39,186.93,186.89,0.65830124]
[1722282561956,0.17,186.92,186.89,0.65830124]
[1722282565761,45.17,186.93,186.89,0.65830124]
[1722282566751,0.17,186.93,186.89,0.65830124]
[1722282574479,15.4508,187.08,186.91,6.1806]
[1722282574674,15.4508,187.08,186.94,24.79]
[1722282574976,15.4508,187.08,186.95,20.0]
[1722282575163,5.3456,187.07,186.95,20.0]
[1722282575564,5.3456,187.07,186.95,50.0]
[1722282576263,5.3439,187.13,186.97,44.79]
[1722282576464,5.3439,187.13,186.98,21.06917379]
[1722282577081,5.3441,187.12,186.99,1.06917362]
[1722282577682,5.3441,187.12,186.99,31.06917362]
[1722282577858,5.3441,187.12,186.99,51.06917362]
[1722282578054,45.17,187.11,186.99,51.06917362]
[1722282578694,50.5144,187.11,186.99,30.0]
[1722282579767,5.3447,187.1,186.99,30.0]
[1722282579981,50.5151,187.09,186.99,30.0]
[1722282580282,5.3455,187.07,186.99,30.0]
[1722282580476,0.17,187.06,186.99,30.0]
[1722282581384,0.17,187.06,186.96,21.4418]
[1722282581686,45.17,187.07,186.97,50.0]
[1722282582076,50.5156,187.07,186.97,30.0]
[1722282582261,50.5156,187.07,186.96,21.4418]
[1722282582586,45.17,187.07,186.97,1.0695031]
[1722282583457,0.17,187.07,186.97,45.8595031]
[1722282583663,5.3444,187.11,186.98,20.0]
[1722282583872,5.344,187.13,186.99,1.06926437]
[1722282584074,5.3442,187.12,186.99,1.06926437]
[1722282584278,5.3442,187.12,186.98,20.0]
[1722282585289,5.3444,187.11,186.98,20.0]
[1722282585764,45.0,187.1,186.98,20.0]
[1722282585964,0.17,187.09,186.99,1.06918131]
[1722282586178,0.17,187.1,186.99,1.06918131]
[1722282586465,0.17,187.1,186.99,31.06918131]
[1722282587163,0.17,187.1,187.0,20.0]
[1722282587369,45.17,187.11,187.01,1.06910759]
[1722282587579,45.17,187.11,187.02,1.0691362]
[1722282587774,15.9894,187.16,187.01,20.0]
[1722282587979,15.9894,187.16,187.04,6.164]
[1722282588271,5.3434,187.15,187.05,1.06892427]
[1722282588471,15.9894,187.16,187.04,6.164]
[1722282588681,15.9894,187.16,187.05,30.0]
[1722282588682,5.3436,187.14,187.05,30.0]
[1722282589183,5.3439,187.13,187.05,30.0]
[1722282589397,5.5144,187.12,187.05,30.0]
[1722282589564,0.17,187.12,187.05,30.0]
[1722282589985,5.3444,187.11,187.05,30.0]
[1722282590160,0.17,187.1,187.05,30.0]
[1722282590372,0.17,187.1,187.04,6.164]
[1722282590693,0.17,187.1,187.05,1.06915235]
[1722282590990,0.17,187.11,187.04,6.164]
[1722282591397,0.17,187.12,187.04,6.164]
[1722282592067,45.17,187.13,187.04,6.164]
[1722282592676,5.514,187.13,187.04,6.164]
[1722282593266,5.514,187.13,187.05,30.0]
[1722282594085,5.3447,187.1,187.04,6.164]
[1722282594394,0.17,187.09,187.04,6.164]
[1722282594872,5.3439,187.13,187.05,1.06912769]
[1722282595067,5.3428,187.17,187.05,31.06912769]
[1722282595288,5.3428,187.17,187.05,66.157]
[1722282596772,0.17,187.16,187.05,66.157]
[1722282597598,0.17,187.16,187.05,67.22581985]
[1722282597917,0.17,187.16,187.05,67.22579738]
[1722282598085,0.17,187.16,187.06,20.0]
[1722282598392,0.17,187.17,187.06,20.0]
[1722282598767,5.5125,187.18,187.06,50.0]
[1722282599681,5.3428,187.17,187.06,50.0]
[1722282599870,0.17,187.16,187.06,50.0]
[1722282600699,5.513,187.16,187.06,50.0]
[1722282601572,0.17,187.16,187.06,50.0]
[1722282601777,50.5128,187.17,187.06,50.0]
[1722282602191,50.5128,187.17,187.06,30.0]
[1722282603694,45.17,187.17,187.07,1.0688651]
[1722282603886,0.772166,187.19,187.07,51.0688651]
[1722282604091,0.772166,187.19,187.08,20.0]
[1722282604412,0.772166,187.19,187.09,1.06864296]
[1722282604711,0.772166,187.19,187.08,20.0]
[1722282604900,0.772166,187.19,187.09,30.0]
[1722282605095,5.3425,187.18,187.09,30.0]
[1722282605502,0.17,187.17,187.09,30.0]
[1722282605891,45.17,187.18,187.09,30.0]
[1722282606314,0.17,187.18,187.09,30.0]
[1722282606887,0.17,187.18,187.1,1.06864839]
[1722282607217,0.17,187.18,187.1,31.06864839]
[1722282607900,0.17,187.18,187.1,30.0]
[1722282608287,50.5125,187.18,187.1,30.0]
[1722282608509,45.17,187.18,187.1,30.0]
[1722282608698,0.17,187.18,187.1,30.0]
[1722282609807,0.17,187.18,187.11,1.06868796]
[1722282610112,0.17,187.18,187.12,6.474]
[1722282610421,0.17,187.18,187.13,1.06863081]
[1722282611425,0.772166,187.19,187.13,1.06863081]
[1722282611709,0.772166,187.19,187.13,31.06863081]
[1722282612211,0.772166,187.19,187.13,45.193]
[1722282613213,0.772166,187.19,187.14,1.06846338]
[1722282613414,0.772166,187.19,187.14,31.06846338]
[1722282614299,0.772166,187.19,187.14,30.0]
[1722282616404,0.17,187.18,187.14,30.0]
[1722282616614,5.3431,187.16,187.04,24.08739512]
[1722282616916,0.17,187.18,187.05,31.06879863]
[1722282616917,0.17,187.15,187.05,31.06879863]
[1722282617718,0.17,187.16,187.05,31.06879863]
[1722282617905,5.513,187.16,187.05,31.06879863]
[1722282618214,5.513,187.16,187.05,1.06879863]
[1722282618215,0.17,187.16,187.05,1.06879863]
[1722282618415,0.17,187.17,187.05,66.06879863]
[1722282619120,0.772166,187.19,187.06,20.0]
[1722282619314,0.772166,187.19,187.07,65.0]
[1722282619516,0.772166,187.19,187.08,1.06861447]
[1722282619719,0.772166,187.19,187.09,6.1725]
[1722282620218,0.772166,187.19,187.1,16.5808]
[1722282620397,0.772166,187.19,187.1,36.5808]
[1722282620603,0.772166,187.19,187.11,46.06844581]
[1722282620812,0.772166,187.19,187.11,45.0]
[1722282621015,0.772166,187.19,187.1,36.5808]
[1722282622205,0.772166,187.19,187.1,16.5808]
[1722282624934,0.772166,187.19,187.11,46.06846285]
[1722282625104,0.772166,187.19,187.11,45.0]
[1722282625916,0.772166,187.19,187.1,16.5808]
[1722282626123,0.772166,187.19,187.11,21.06847274]
[1722282626308,0.772166,187.19,187.11,20.0]
[1722282626509,6.114366,187.19,187.1,16.5808]
[1722282626712,0.772166,187.19,187.1,16.5808]
[1722282634835,0.772166,187.19,187.11,1.0685031]
[1722282635219,0.772166,187.19,187.1,17.64925725]
[1722282635443,0.772166,187.19,187.13,12.36]
[1722282636727,0.772166,187.19,187.15,12.36]
[1722282637339,0.772166,187.19,187.13,12.36]